bitfinex-derivatives/quotes_SOLF0:USTF0_20251228
["timestamp","ask_amount","ask_price","bid_price","bid_amount"]
[1766915523203,3.59018777,124.07,124.04,0.00421839]
[1766915529014,10.84998777,124.07,124.04,0.00421839]
[1766915529213,3.43,124.06,124.04,0.00421839]
[1766915534917,10.6904,124.06,124.04,0.00421839]
[1766915537117,3.22,124.05,124.04,0.00421839]
[1766915545329,3.28018777,124.07,124.04,0.00421839]
[1766915548434,0.06018777,124.07,124.04,0.00421839]
[1766915551437,0.06018777,124.07,124.04,3.30421839]
[1766915552735,3.22,124.09,124.04,3.30421839]
[1766915553540,0.0609742,124.08,124.04,3.30421839]
[1766915560338,0.0009742,124.08,124.04,3.30421839]
[1766915565848,0.0009742,124.08,124.04,10.56571839]
[1766915577857,0.0009742,124.08,124.05,10.6009]
[1766915578057,0.0009742,124.08,124.06,3.34]
[1766915582858,0.0009742,124.08,124.04,3.34421839]
[1766915583061,3.2009742,124.08,124.04,0.00421839]
[1766915587271,3.2,124.07,124.04,0.00421839]
[1766915599962,7.2601742,124.08,124.04,0.00421839]
[1766915600477,0.0009742,124.08,124.04,0.00421839]
[1766915608382,0.0009742,124.08,124.04,3.20421839]
[1766915692862,0.0009742,124.08,124.04,0.00421839]
[1766915710274,0.0009742,124.08,124.04,3.27421839]
[1766915744514,0.0009742,124.08,124.05,3.42]
[1766915747414,9.34558074,124.11,124.05,3.42]
[1766915747612,3.38,124.11,124.05,3.42]
[1766915748514,0.02611653,124.09,124.07,0.05105609]
[1766915752810,10.6374,124.11,124.07,0.05105609]
[1766915754917,7.2564,124.13,124.07,3.55105609]
[1766915755119,10.7264,124.13,124.07,3.55105609]
[1766915755420,3.47,124.12,124.07,3.55105609]
[1766915770233,10.7268,124.12,124.07,3.55105609]
[1766915776642,10.7374,124.11,124.07,0.05105609]
[1766915776940,3.48,124.1,124.08,0.00443556]
[1766915777940,3.53,124.1,124.08,0.00443556]
[1766915778336,3.53,124.1,124.05,3.3]
[1766915778536,10.788,124.1,124.05,3.3]
[1766915779138,3.48,124.09,124.05,3.3]
[1766915779336,3.48,124.09,124.06,0.0537816]
[1766915780137,10.7386,124.09,124.06,0.0037816]
[1766915784544,3.48,124.09,124.06,0.0037816]
[1766915804467,3.48,124.08,124.02,10.5622]
[1766915804864,3.48,124.08,124.02,3.3]
[1766915805462,0.05630324,124.06,124.04,0.05568331]
[1766915828984,3.48,124.09,124.04,0.05568331]
[1766915829386,3.48,124.09,124.04,3.51568331]
[1766915830084,0.05191392,124.08,124.04,3.51568331]
[1766915842292,0.05191392,124.08,124.04,10.77678331]
[1766915842485,0.05191392,124.08,124.05,3.21]
[1766915851191,0.05191392,124.08,124.04,3.26568331]
[1766915856797,3.37,124.07,124.04,0.05568331]
[1766915859200,7.31121392,124.08,124.04,0.05568331]
[1766915859405,0.05191392,124.08,124.04,3.26568331]
[1766915866109,98.73,124.12,124.05,3.37]
[1766915866315,3.49,124.12,124.05,3.37]
[1766915866907,10.7469,124.12,124.06,3.37]
[1766915867107,10.7469,124.12,124.08,0.05793822]
[1766915867510,3.49,124.12,124.08,0.05793822]
[1766915871022,3.49,124.12,124.05,7.2603]
[1766915871219,3.49,124.12,124.05,10.7303]
[1766915871722,3.43,124.11,124.05,10.7303]
[1766915872224,0.05533108,124.09,124.07,0.05803942]
[1766915899135,4.71521456,124.13,124.07,10.76773942]
[1766915899339,4.71521456,124.13,124.08,3.45]
[1766915900241,3.41,124.12,124.08,3.45]
[1766915902238,3.41,124.12,124.07,0.05803942]
[1766915903438,3.41,124.12,124.07,3.50803942]
[1766915915046,3.41,124.11,124.07,0.05803942]
[1766915916653,3.41,124.1,124.07,0.05803942]
[1766915936377,3.41,124.1,124.04,10.7111]
[1766915937181,3.33,124.09,124.04,3.45]
[1766915937374,0.05413606,124.08,124.05,0.05510993]
[1766915942082,3.33,124.07,124.02,10.7521]
[1766915942987,3.33,124.07,124.03,0.06024968]
[1766915946188,3.33,124.07,124.03,3.55024968]
[1766915951884,3.33,124.07,124.03,10.81224968]
[1766915953393,0.05413606,124.08,124.03,10.81224968]
[1766915954697,3.38413606,124.08,124.03,10.81224968]
[1766915958198,3.38413606,124.08,124.04,3.4]
[1766915973410,0.05413606,124.08,124.04,10.6614]
[1766915973609,7.2574,124.11,124.05,3.4]
[1766915973811,10.7674,124.11,124.05,3.4]
[1766915974011,10.7674,124.11,124.06,3.4]
[1766915974706,0.0565896,124.1,124.07,0.05685817]
[1766915985017,3.3865896,124.1,124.05,7.2609]
[1766915986018,3.3865896,124.1,124.06,0.05779647]
[1766916008042,3.23,124.15,124.09,3.4]
[1766916008736,3.23,124.15,124.09,10.6584]
[1766916009144,3.28749917,124.13,124.07,98.64]
[1766916009442,3.28749917,124.13,124.07,3.4]
[1766916010045,3.23,124.12,124.06,7.2601]
[1766916010246,0.06169421,124.1,124.08,0.06014407]
[1766916011050,3.29169421,124.1,124.08,0.00014407]
[1766916013952,3.29169421,124.1,124.05,3.4]
[1766916014154,3.29169421,124.1,124.03,105.902]
[1766916014547,3.29169421,124.1,124.03,98.64]
[1766916014954,3.29169421,124.1,124.05,0.05174958]
[1766916022062,3.29169421,124.1,124.05,0.00174958]
[1766916027450,3.49,124.09,124.05,0.00174958]
[1766916028563,3.49,124.08,124.05,0.00174958]
[1766916040267,10.7492,124.08,124.05,0.00174958]
[1766916040466,3.49,124.07,124.05,0.00174958]
[1766916040670,3.54121817,124.07,124.05,0.00174958]
[1766916041673,3.49,124.06,124.0,17.322173]
[1766916041866,3.49,124.06,123.99,3.21]
[1766916042663,3.49,124.06,124.01,0.05130089]
[1766916042871,112.9141,124.09,124.01,0.05130089]
[1766916042872,0.05168068,124.04,124.01,0.05130089]
[1766916043170,0.05168068,124.04,124.01,0.05288954]
[1766916054378,7.2601,124.07,124.01,3.52288954]
[1766916054577,7.2601,124.07,124.01,3.47]
[1766916055380,0.0575841,124.05,124.03,0.05864881]
[1766916056289,3.4575841,124.05,124.0,7.2638]
[1766916056686,3.4575841,124.05,124.0,10.7338]
[1766916057186,3.4575841,124.05,124.01,0.06159556]
[1766916070003,3.4575841,124.05,124.01,0.00159556]
[1766916071605,3.4,124.03,124.01,0.00159556]
[1766916078409,3.5575841,124.05,124.01,0.00159556]
[1766916080710,0.0575841,124.05,124.01,3.46159556]
[1766916087917,0.0575841,124.05,124.01,10.72459556]
[1766916092623,0.0575841,124.05,124.02,3.46]
[1766916092832,3.5,124.1,124.02,3.46]
[1766916093821,0.05844687,124.07,124.05,0.05255323]
[1766916100536,3.5,124.09,124.05,0.05255323]
[1766916101435,0.05180519,124.08,124.05,0.05255323]
[1766916116446,95.26,124.11,124.05,0.05255323]
[1766916116447,3.3,124.14,124.05,3.24255323]
[1766916116654,3.3,124.18,124.09,3.19]
[1766916117161,3.3,124.18,124.1,3.19]
[1766916117556,0.06065025,124.15,124.13,0.0513459]
[1766916165396,3.27,124.18,124.13,0.0513459]
[1766916165692,95.2,124.17,124.13,0.0513459]
[1766916166293,3.27,124.18,124.13,10.6974459]
[1766916166491,0.05336928,124.17,124.13,10.6974459]
[1766916172902,0.05336928,124.17,124.14,3.33]
[1766916173792,0.05336928,124.17,124.13,10.6374459]
[1766916186906,0.05336928,124.17,124.14,10.5856]
[1766916187106,0.00336928,124.17,124.15,3.33]
[1766916190513,0.00336928,124.17,124.15,10.585]
[1766916190811,0.00336928,124.17,124.16,3.33]
[1766916193710,3.19,124.24,124.19,3.33]
[1766916194613,10.4399,124.24,124.19,3.33]
[1766916194818,10.4399,124.24,124.2,0.05399665]
[1766916195414,3.19,124.24,124.2,0.05399665]
[1766916197824,7.2496,124.25,124.2,3.39399665]
[1766916198917,10.7196,124.25,124.2,3.39399665]
[1766916199922,10.7183,124.27,124.2,3.39399665]
[1766916200225,10.7183,124.27,124.22,0.05097618]
[1766916200425,3.47,124.26,124.22,0.05097618]
[1766916275467,3.33,124.24,124.22,0.00097618]
[1766916275667,3.33,124.24,124.19,3.25]
[1766916275880,3.33,124.24,124.18,108.47210261]
[1766916276473,0.05640634,124.22,124.2,0.05942505]
[1766916277170,3.33,124.24,124.2,0.05942505]
[1766916280481,3.33,124.24,124.2,10.12152766]
[1766916291297,3.33,124.24,124.2,20.77362766]
[1766916291498,10.5987,124.26,124.2,20.77362766]
[1766916291982,3.35,124.25,124.2,20.77362766]
[1766916295701,114.17726785,124.31,124.2,10.12152766]
[1766916295898,114.17726785,124.31,124.22,3.4]
[1766916295899,3.35,124.27,124.22,3.4]
[1766916297013,0.05597381,124.26,124.22,3.4]
[1766916307213,0.05597381,124.26,124.22,10.6509]
[1766916311820,95.12,124.32,124.22,10.6509]
[1766916312014,96.55270926,124.32,124.22,10.6509]
[1766916312317,7.2471,124.29,124.22,10.6509]
[1766916312818,0.06123879,124.27,124.24,0.05597381]
[1766916314220,3.41123879,124.27,124.24,0.05597381]
[1766916314409,3.41123879,124.27,124.2,3.4]
[1766916314612,3.35,124.27,124.2,3.4]
[1766916315418,7.2475,124.28,124.2,3.4]
[1766916315419,0.05814533,124.25,124.2,3.4]
[1766916315620,0.05814533,124.25,124.21,7.2515]
[1766916317317,3.45,124.24,124.2,7.2521]
[1766916317623,3.45,124.24,124.19,3.21]
[1766916318722,3.45,124.24,124.19,10.4627]
[1766916320223,3.45,124.24,124.18,102.4133]
[1766916320525,0.05696789,124.22,124.18,102.4133]
[1766916321727,7.2493,124.25,124.19,3.21]
[1766916322025,10.6986,124.26,124.2,3.21]
[1766916322824,0.06006365,124.24,124.22,0.05696789]
[1766916327530,10.698,124.28,124.22,3.26696789]
[1766916327727,10.698,124.28,124.22,3.21]
[1766916327927,3.45,124.27,124.22,3.21]
[1766916328431,0.05179852,124.26,124.23,0.05880657]
[1766916331527,0.05179852,124.26,124.23,3.26880657]
[1766916332336,3.45,124.28,124.23,3.26880657]
[1766916333428,0.05739109,124.27,124.23,3.26880657]
[1766916378873,7.2463,124.31,124.23,3.26880657]
[1766916379075,3.46,124.31,124.23,3.21]
[1766916379979,0.05502165,124.28,124.26,0.06158262]
[1766916386477,10.7058,124.31,124.26,3.44158262]
[1766916386880,3.46,124.31,124.26,3.44158262]
[1766916387574,0.05564901,124.3,124.26,3.44158262]
[1766916389489,3.46,124.32,124.26,3.44158262]
[1766916390386,0.05780614,124.3,124.26,3.44158262]
[1766916392377,7.2448,124.33,124.26,3.44158262]
[1766916393286,0.05297537,124.31,124.27,3.38]
[1766916393485,0.00297537,124.31,124.28,3.43486729]
[1766916400885,0.00297537,124.31,124.28,10.68206729]
[1766916401083,0.00297537,124.31,124.29,3.38]
[1766916405792,3.52,124.36,124.29,3.38]
[1766916406589,3.52,124.36,124.3,3.27]
[1766916406791,0.06122375,124.34,124.32,0.05935254]
[1766916419707,0.00122375,124.34,124.32,3.41935254]
[1766916431912,0.00122375,124.34,124.32,0.05935254]
[1766916433819,0.00122375,124.34,124.29,3.36]
[1766916434619,0.00122375,124.34,124.3,0.05925751]
[1766916437021,0.00122375,124.34,124.3,3.30925751]
[1766916443728,0.00122375,124.34,124.32,3.25]
[1766916450638,3.5,124.39,124.33,3.25]
[1766916451230,7.241,124.4,124.33,3.25]
[1766916451631,0.0612238,124.38,124.35,3.30389693]
[1766916476349,0.0612238,124.38,124.35,3.29389693]
[1766916483558,0.0612238,124.38,124.35,0.05389693]
[1766916483765,0.0612238,124.38,124.35,3.29389693]
[1766916493076,0.0012238,124.38,124.35,3.29389693]
[1766916495478,0.0012238,124.38,124.36,3.47]
[1766916500885,3.52,124.43,124.37,3.47]
[1766916501984,0.05908058,124.41,124.39,0.05486742]
[1766916502690,3.57908058,124.41,124.36,3.47]
[1766916503288,0.05908058,124.41,124.36,3.47]
[1766916503788,0.05908058,124.41,124.37,3.52625521]
[1766916519611,0.05908058,124.41,124.37,10.76835521]
[1766916519908,0.05908058,124.41,124.38,3.47]
[1766916523010,10.7585,124.44,124.38,3.47]
[1766916524311,0.05150623,124.42,124.4,0.05505158]
[1766916526712,0.05150623,124.42,124.4,3.36505158]
[1766916526907,0.00150623,124.42,124.4,3.36505158]
[1766916565263,7.2361,124.48,124.4,7.29545158]
[1766916565458,7.2361,124.48,124.41,3.4]
[1766916565755,10.6861,124.48,124.41,3.4]
[1766916565956,10.6865,124.47,124.41,3.4]
[1766916566367,0.05901635,124.45,124.41,3.4]
[1766916567447,0.05901635,124.45,124.42,0.05182155]
[1766916574970,0.05901635,124.45,124.42,3.45182155]
[1766916578663,0.05901635,124.45,124.42,0.05182155]
[1766916580770,3.50901635,124.45,124.41,2.30673939]
[1766916580972,10.74671635,124.45,124.41,2.30673939]
[1766916581766,10.74671635,124.45,124.42,0.05710073]
[1766916581970,10.74671635,124.45,124.41,2.30673939]
[1766916582961,10.74671635,124.45,124.42,0.05499738]
[1766916583873,10.74671635,124.45,124.41,2.30673939]
[1766916584872,10.74671635,124.45,124.42,0.05212015]
[1766916588576,10.7483,124.44,124.39,3.23]
[1766916589681,10.7483,124.44,124.4,0.0598964]
[1766916595290,7.2383,124.44,124.4,3.2898964]
[1766916597693,10.7683,124.44,124.4,3.2898964]
[1766916599191,3.53,124.43,124.4,0.0598964]
[1766916600287,10.7695,124.42,124.36,10.06210261]
[1766916600588,10.7695,124.42,124.36,3.23]
[1766916601383,0.05263518,124.4,124.38,0.05577174]
[1766916601894,3.53,124.46,124.39,3.23]
[1766916602793,0.05771524,124.44,124.41,3.29118442]
[1766916614297,0.05771524,124.44,124.41,0.06118442]
[1766916618706,7.29621524,124.44,124.41,0.06118442]
[1766916621913,3.49,124.43,124.41,0.00118442]
[1766916622108,10.7288,124.43,124.37,98.39]
[1766916622310,10.7288,124.43,124.38,3.41]
[1766916623002,0.05102353,124.42,124.39,0.05248622]
[1766916626121,0.00102353,124.42,124.39,3.46248622]
[1766916638930,0.00102353,124.42,124.39,0.05248622]
[1766916644938,3.19102353,124.42,124.39,0.05248622]
[1766916645937,10.43042353,124.42,124.39,0.05248622]
[1766916646334,3.19,124.41,124.37,94.98]
[1766916647330,3.19,124.41,124.38,0.05351984]
[1766916647527,7.24042353,124.42,124.38,0.05351984]
[1766916650941,10.77042353,124.42,124.38,0.05351984]
[1766916668260,0.00102353,124.42,124.38,3.45351984]
[1766916675067,0.00102353,124.42,124.38,10.69511984]
[1766916675258,0.00102353,124.42,124.39,3.43]
[1766916685273,0.00102353,124.42,124.38,0.05351984]
[1766916685476,0.00102353,124.42,124.38,3.48351984]
[1766916686674,0.00102353,124.42,124.38,10.72511984]
[1766916692393,0.00102353,124.42,124.39,3.43]
[1766916698197,0.00102353,124.42,124.4,3.43]
[1766916706306,3.47,124.46,124.41,3.32]
[1766916707304,3.51618734,124.45,124.42,0.05639618]
[1766916728224,3.51618734,124.45,124.39,3.32]
[1766916728420,3.44,124.44,124.39,3.32]
[1766916729224,3.44,124.44,124.4,0.05436109]
[1766916733628,10.6783,124.44,124.4,0.05436109]
[1766916734136,3.44,124.43,124.4,0.05436109]
[1766916736037,3.44,124.43,124.4,0.00436109]
[1766916746037,7.2387,124.43,124.37,13.50210261]
[1766916746242,3.36,124.42,124.35,108.52210261]
[1766916746844,3.36,124.42,124.36,3.48]
[1766916747242,0.0528178,124.4,124.38,0.05418362]
[1766916780267,0.0528178,124.4,124.36,3.48]
[1766916780665,3.5628178,124.4,124.34,98.44]
[1766916781170,10.8036178,124.4,124.36,0.05780112]
[1766916785169,10.8036178,124.4,124.36,3.49780112]
[1766916785375,0.0528178,124.4,124.36,3.49780112]
[1766916789278,3.51,124.42,124.37,3.44]
[1766916790278,0.06049025,124.41,124.37,3.44]
[1766916793484,3.57049025,124.41,124.37,3.44]
[1766916793784,3.57049025,124.41,124.36,3.49780112]
[1766916798284,3.53,124.4,124.36,3.49780112]
[1766916798483,3.53,124.4,124.36,0.05780112]
[1766916799589,10.7705,124.4,124.36,0.05780112]
[1766916799790,3.53,124.39,124.36,0.05780112]
[1766916813087,0.06049025,124.41,124.36,0.05780112]
[1766916813088,3.59049025,124.41,124.36,0.05780112]
[1766916814296,10.83039025,124.41,124.36,0.05780112]
[1766916814494,3.53,124.4,124.36,0.05780112]
[1766916835715,10.7705,124.4,124.36,0.05780112]
[1766916837919,3.34,124.39,124.36,0.05780112]
[1766916870955,3.35049025,124.41,124.36,0.05780112]
[1766916872654,3.35049025,124.41,124.36,7.30060112]
[1766916876057,3.35049025,124.41,124.36,10.53060112]
[1766916878154,3.35049025,124.41,124.36,3.28780112]
[1766916888270,3.35049025,124.41,124.36,10.53060112]
[1766916899276,3.35049025,124.41,124.37,7.2422]
[1766916901074,0.06049025,124.41,124.38,7.2416]
[1766916901275,3.48,124.43,124.38,10.7516]
[1766916902182,0.05662839,124.42,124.39,0.05301133]
[1766916934520,3.34662839,124.42,124.39,0.05301133]
[1766916935417,3.34662839,124.42,124.35,13.53210261]
[1766916935622,3.34662839,124.42,124.36,95.0]
[1766916936420,3.34662839,124.42,124.38,0.06074128]
[1766916936722,3.29,124.41,124.38,0.00074128]
[1766916939122,0.05662839,124.42,124.38,0.00074128]
[1766916939324,0.05662839,124.42,124.38,3.47074128]
[1766916950534,7.29602839,124.42,124.38,3.47074128]
[1766916970060,0.05662839,124.42,124.38,3.47074128]
[1766916971863,3.54662839,124.42,124.38,0.00074128]
[1766916980261,0.05662839,124.42,124.38,0.00074128]
[1766916980467,3.53,124.46,124.39,3.26]
[1766916980774,3.53,124.46,124.39,98.26]
[1766916981566,0.06059618,124.44,124.41,0.05562695]
[1766917004791,0.06059618,124.44,124.41,3.31562695]
[1766917007496,7.2364,124.47,124.41,3.31562695]
[1766917007698,3.41,124.54,124.49,3.52]
[1766917007997,3.41,124.54,124.47,3.52]
[1766917008693,0.05311914,124.52,124.49,0.05096895]
[1766917008894,0.05311914,124.52,124.49,0.05326144]
[1766917019294,0.05311914,124.52,124.49,3.44326144]
[1766917030822,0.05311914,124.52,124.49,0.05326144]
[1766917033218,3.38311914,124.52,124.49,0.05326144]
[1766917034316,3.38311914,124.52,124.47,94.92]
[1766917034519,3.33,124.52,124.47,94.92]
[1766917035312,0.05654753,124.51,124.48,0.05932825]
[1766917036511,3.0,124.5,124.48,0.05932825]
[1766917040117,6.5,124.5,124.46,0.48]
[1766917040323,3.5,124.5,124.46,0.48]
[1766917041217,3.5,124.5,124.47,0.05714586]
[1766917042216,7.29064753,124.51,124.47,0.05714586]
[1766917043226,3.0,124.5,124.47,0.05714586]
[1766917050533,6.5,124.5,124.47,0.05714586]
[1766917050938,3.5,124.5,124.47,0.05714586]
[1766917053940,3.0,124.49,124.47,0.05714586]
[1766917054443,6.5,124.49,124.45,94.92]
[1766917054741,3.5,124.49,124.45,94.92]
[1766917055441,0.056393,124.48,124.45,94.92]
[1766917056343,3.556393,124.48,124.45,94.92]
[1766917056543,3.556393,124.48,124.43,94.94]
[1766917056738,3.556393,124.48,124.43,95.53]
[1766917057429,0.056393,124.48,124.44,0.59]
[1766917057633,3.056393,124.48,124.44,0.59]
[1766917065848,0.056393,124.48,124.44,0.59]
[1766917066048,15.07912856,124.59,124.44,0.59]
[1766917066049,3.25,124.51,124.44,0.59]
[1766917066445,3.25,124.51,124.46,0.6]
[1766917067043,0.05987457,124.5,124.47,0.06101531]
[1766917076858,3.0,124.49,124.47,0.06101531]
[1766917077358,0.05987457,124.5,124.47,0.06101531]
[1766917080365,3.0,124.49,124.47,0.06101531]
[1766917080766,0.05987457,124.5,124.47,0.06101531]
[1766917095572,0.05987457,124.5,124.47,7.29731531]
[1766917106284,0.05987457,124.5,124.47,0.06101531]
[1766917112685,0.05987457,124.5,124.47,7.88711531]
[1766917112886,3.32,124.52,124.47,7.88711531]
[1766917113787,0.05725864,124.51,124.47,7.88711531]
[1766917115689,3.05725864,124.51,124.47,7.88711531]
[1766917119296,3.05725864,124.51,124.47,0.65101531]
[1766917127294,6.32725864,124.51,124.47,0.06101531]
[1766917128893,3.27,124.5,124.47,0.06101531]
[1766917132001,3.0,124.49,124.47,0.06101531]
[1766917132794,6.41,124.49,124.47,0.00101531]
[1766917133001,3.41,124.49,124.47,0.00101531]
[1766917136002,6.41,124.48,124.47,0.00101531]
[1766917166530,3.0,124.48,124.47,0.00101531]
[1766917166730,3.42,124.5,124.47,0.00101531]
[1766917169637,3.0,124.49,124.47,0.00101531]
[1766917173339,3.42,124.5,124.47,0.00101531]
[1766917176344,6.42,124.5,124.47,0.00101531]
[1766917182349,3.42,124.5,124.47,0.00101531]
[1766917185349,3.0,124.49,124.47,0.00101531]
[1766917187047,3.42,124.5,124.47,0.00101531]
[1766917189952,6.42,124.5,124.47,0.00101531]
[1766917192558,3.43,124.49,124.47,0.00101531]
[1766917195658,6.43,124.49,124.47,0.00101531]
[1766917197061,3.43,124.48,124.47,0.00101531]
[1766917314477,6.43,124.48,124.47,0.00101531]
[1766917329276,13.6658,124.48,124.47,0.00101531]
[1766917329581,3.39,124.47,124.41,7.2399]
[1766917330282,3.39,124.46,124.39,7.2405]
[1766917330474,3.44971714,124.44,124.41,0.05763754]
[1766917330675,3.44971714,124.44,124.41,0.05789637]
[1766917332683,3.0,124.43,124.41,0.05789637]
[1766917333983,3.44971714,124.44,124.41,0.05789637]
[1766917335082,3.44971714,124.44,124.39,0.66]
[1766917335680,3.44971714,124.44,124.38,2.18442074]
[1766917337082,6.25,124.43,124.38,2.18442074]
[1766917337482,3.25,124.43,124.38,2.18442074]
[1766917338182,3.25,124.43,124.38,2.89442074]
[1766917340485,3.0,124.42,124.38,2.89442074]
[1766917340785,0.06036924,124.41,124.38,2.89442074]
[1766917341283,0.06036924,124.41,124.37,102.1818]
[1766917342787,0.06036924,124.41,124.37,102.8918]
[1766917348588,0.06036924,124.41,124.37,95.65]
[1766917348792,3.31036924,124.41,124.37,95.65]
[1766917349193,6.31036924,124.41,124.37,95.65]
[1766917350797,6.31036924,124.41,124.37,94.94]
[1766917351393,3.31036924,124.41,124.34,95.69]
[1766917351588,0.05319655,124.39,124.35,0.71]
[1766917352697,0.05319655,124.39,124.35,7.9531]
[1766917353892,3.30319655,124.39,124.34,94.98]
[1766917354396,6.25,124.38,124.34,94.98]
[1766917355097,3.25,124.37,124.31,0.71]
[1766917355297,3.25,124.37,124.31,95.69]
[1766917355298,0.05546485,124.35,124.31,95.69]
[1766917355692,3.25,124.39,124.32,0.71]
[1766917355901,3.25,124.41,124.32,0.71]
[1766917356701,0.05373807,124.38,124.35,0.71621404]
[1766917356891,3.25,124.41,124.35,0.71621404]
[1766917357900,0.06162974,124.39,124.35,0.71621404]
[1766917358097,3.06162974,124.39,124.35,0.71621404]
[1766917359204,0.06162974,124.39,124.35,0.71621404]
[1766917361200,3.31162974,124.39,124.35,0.05621404]
[1766917362106,6.25,124.38,124.35,0.05621404]
[1766917362606,3.25,124.38,124.35,0.05621404]
[1766917363696,0.06162974,124.39,124.35,0.05621404]
[1766917364703,3.31162974,124.39,124.35,0.05621404]
[1766917365710,3.0,124.38,124.35,0.05621404]
[1766917367011,3.31162974,124.39,124.35,0.05621404]
[1766917370013,6.31162974,124.39,124.35,0.05621404]
[1766917373712,6.31162974,124.39,124.35,7.29961404]
[1766917373916,3.31162974,124.39,124.35,7.29961404]
[1766917376820,6.31162974,124.39,124.35,7.29961404]
[1766917379423,3.31162974,124.39,124.35,7.29961404]
[1766917380324,7.2389,124.43,124.36,7.2425]
[1766917381012,7.2389,124.43,124.37,7.2422]
[1766917381322,0.05289454,124.41,124.39,0.05698158]
[1766917381623,0.05289454,124.41,124.37,7.2422]
[1766917382426,3.0,124.4,124.38,0.05607081]
[1766917387432,6.35,124.4,124.38,0.05607081]
[1766917387729,3.35,124.4,124.38,0.05607081]
[1766917390531,3.0,124.39,124.38,0.05607081]
[1766917391726,3.35,124.4,124.38,0.05607081]
[1766917392438,0.05289454,124.41,124.38,0.05607081]
[1766917393437,0.05289454,124.41,124.38,3.28607081]
[1766917394839,3.0,124.42,124.38,10.52747081]
[1766917395232,3.0,124.42,124.39,3.52]
[1766917395936,0.06114028,124.42,124.39,3.52]
[1766917401839,3.31,124.46,124.4,3.52]
[1766917402743,0.06044866,124.44,124.42,0.05921127]
[1766917415549,2.06044866,124.44,124.42,0.05921127]
[1766917423063,0.06044866,124.44,124.42,0.05921127]
[1766917425159,3.49,124.47,124.42,3.33921127]
[1766917426062,2.06044219,124.46,124.42,3.33921127]
[1766917426863,4.219e-05,124.46,124.43,3.28]
[1766917428558,4.219e-05,124.46,124.43,10.5186]
[1766917429566,4.219e-05,124.46,124.44,3.28]
[1766917429864,3.49,124.49,124.44,3.28]
[1766917430959,0.05360555,124.48,124.45,0.05232861]
[1766917435663,0.05360555,124.48,124.45,3.29232861]
[1766917436261,7.2334,124.53,124.45,3.29232861]
[1766917436262,3.39,124.51,124.45,3.29232861]
[1766917436567,3.39,124.51,124.45,10.52982861]
[1766917437266,0.0517921,124.49,124.45,10.52982861]
[1766917438363,3.39,124.51,124.46,10.4768]
[1766917439466,0.05964425,124.5,124.46,10.4768]
[1766917445877,3.39,124.53,124.47,10.4763]
[1766917446873,0.05890547,124.51,124.49,0.06123517]
[1766917452781,3.44890547,124.51,124.49,0.06123517]
[1766917456783,0.05890547,124.51,124.49,0.06123517]
[1766917458396,3.52890547,124.51,124.49,0.06123517]
[1766917461286,3.52890547,124.51,124.44,3.36]
[1766917462288,3.52890547,124.51,124.46,0.05955426]
[1766917462587,3.28,124.5,124.44,10.5977]
[1766917463587,3.22,124.49,124.46,0.05707282]
[1766917463781,0.05816074,124.48,124.46,0.05707282]
[1766917468687,3.27816074,124.48,124.44,3.36]
[1766917468887,3.27816074,124.48,124.43,102.1787]
[1766917469687,3.27816074,124.48,124.43,105.5387]
[1766917469896,3.27816074,124.48,124.44,0.05670341]
[1766917476398,0.05816074,124.48,124.44,10.65480341]
[1766917483003,0.05816074,124.48,124.44,3.41670341]
[1766917483198,3.21816074,124.48,124.44,0.05670341]
[1766917484698,10.45416074,124.48,124.44,0.05670341]
[1766917489112,3.21816074,124.48,124.44,0.05670341]
[1766917518320,3.21816074,124.48,124.43,91.46670341]
[1766917519332,3.21816074,124.48,124.44,0.05902461]
[1766917520831,7.2364,124.47,124.42,10.06210261]
[1766917521036,0.05816074,124.48,124.4,24.81851728]
[1766917521037,0.05816074,124.48,124.4,3.43]
[1766917521335,112.556,124.49,124.39,105.00210261]
[1766917521529,7.237,124.46,124.39,105.00210261]
[1766917521733,7.237,124.46,124.39,94.94]
[1766917521928,0.05265158,124.44,124.41,0.05637133]